bitfinex/quotes_SOLUSD_20230103
["timestamp","ask_amount","ask_price","bid_price","bid_amount"]
[1672709628204,161.958,11.167,11.155,40.0]
[1672709629034,161.958,11.167,11.155,199.8882]
[1672709630415,161.958,11.167,11.155,159.8882]
[1672709630812,40.0,11.165,11.155,159.8882]
[1672709631233,67.25,11.166,11.155,159.8882]
[1672709631669,161.958,11.167,11.156,40.0]
[1672709631983,161.958,11.167,11.156,198.7654]
[1672709632834,40.0,11.166,11.156,198.7654]
[1672709633440,229.198,11.167,11.156,198.7654]
[1672709633970,40.0,11.166,11.156,198.7654]
[1672709634591,229.198,11.167,11.156,198.7654]
[1672709635015,161.958,11.167,11.156,198.7654]
[1672709636808,161.958,11.167,11.156,158.7654]
[1672709637011,40.0,11.166,11.156,158.7654]
[1672709637557,107.25,11.166,11.156,158.7654]
[1672709637899,40.0,11.166,11.156,158.7654]
[1672709638263,229.198,11.167,11.156,158.7654]
[1672709638474,161.958,11.167,11.156,158.7654]
[1672709639021,161.958,11.167,11.157,40.0]
[1672709640592,161.958,11.167,11.156,158.7654]
[1672709641977,161.958,11.167,11.157,40.0]
[1672709649619,67.2,11.173,11.16,8.24]
[1672709649824,81.15,11.18,11.16,8.24]
[1672709649825,116.2323,11.177,11.161,183.4826]
[1672709650033,49.0523,11.177,11.163,40.0]
[1672709650256,49.0523,11.177,11.164,230.7426]
[1672709650998,49.0523,11.177,11.166,40.0]
[1672709651538,116.2323,11.177,11.166,40.0]
[1672709651721,116.2323,11.177,11.166,203.4826]
[1672709652909,49.0523,11.177,11.166,203.4826]
[1672709653510,49.0523,11.177,11.167,67.24]
[1672709653941,49.0523,11.177,11.168,40.0]
[1672709654134,49.0523,11.177,11.17,8.24]
[1672709654350,23.8886,11.181,11.17,8.24]
[1672709654351,229.3194,11.189,11.171,87.22]
[1672709654571,162.2094,11.189,11.171,229.720629]
[1672709654766,162.2094,11.189,11.171,156.1509]
[1672709654974,67.11,11.188,11.172,40.0]
[1672709655178,67.11,11.188,11.173,67.2]
[1672709655399,229.3194,11.189,11.173,67.2]
[1672709655610,162.2094,11.189,11.174,158.6828]
[1672709655834,162.2094,11.189,11.175,107.19]
[1672709656043,162.2094,11.189,11.176,112.1146]
[1672709656236,67.11,11.188,11.176,112.1146]
[1672709656445,67.11,11.188,11.175,46.5682]
[1672709657010,40.0,11.186,11.168,152.1146]
[1672709657225,8.24,11.18,11.168,152.1146]
[1672709658780,157.6323,11.182,11.168,167.92190786]
[1672709658991,67.12,11.187,11.17,8.24]
[1672709659200,223.8589,11.189,11.172,40.0]
[1672709659410,223.8589,11.189,11.173,232.2322]
[1672709659633,156.7489,11.189,11.174,40.0]
[1672709659852,156.7489,11.189,11.176,40.0]
[1672709660259,156.7489,11.189,11.178,40.0]
[1672709661105,156.7489,11.189,11.178,157.3314]
[1672709662667,67.07,11.195,11.179,87.17]
[1672709662888,159.6084,11.198,11.18,40.0]
[1672709663097,67.06,11.197,11.181,87.16]
[1672709663319,67.06,11.197,11.18,199.1365]
[1672709663509,8.24,11.19,11.18,199.1365]
[1672709666048,48.24,11.19,11.18,199.1365]
[1672709666258,67.11,11.189,11.18,199.1365]
[1672709666888,115.34,11.19,11.18,199.1365]
[1672709667296,148.3,11.19,11.18,159.1365]
[1672709667526,58.37678282,11.189,11.18,159.1365]
[1672709667733,40.0,11.187,11.18,45.3343]
[1672709667943,67.13,11.186,11.18,45.3343]
[1672709668136,67.13,11.186,11.176,24.7086]
[1672709668137,67.13,11.186,11.174,40.0]
[1672709668677,125.50678282,11.186,11.174,40.0]
[1672709669509,40.0,11.185,11.174,40.0]
[1672709669739,67.14,11.184,11.174,40.0]
[1672709670054,67.14,11.184,11.172,40.0]
[1672709670790,8.24,11.18,11.172,40.0]
[1672709671316,8.24,11.18,11.17,40.0]
[1672709671824,41.2,11.18,11.168,200.6943]
[1672709672031,67.17,11.179,11.168,160.6943]
[1672709672243,40.0,11.178,11.168,160.6943]
[1672709672467,40.0,11.178,11.167,40.0]
[1672709672674,40.0,11.178,11.165,107.25]
[1672709672890,67.18,11.177,11.161,107.28]
[1672709673077,165.54678282,11.178,11.163,110.0034]
[1672709673289,165.54678282,11.178,11.164,177.2634]
[1672709673500,165.54678282,11.178,11.164,110.0034]
[1672709673708,165.54678282,11.178,11.165,40.0]
[1672709674350,125.54678282,11.178,11.165,40.0]
[1672709674563,125.54678282,11.178,11.165,150.0034]
[1672709674764,209.79713193,11.179,11.165,217.2534]
[1672709674972,159.0337,11.179,11.165,217.2534]
[1672709675180,159.0337,11.179,11.165,233.06070786]
[1672709675385,67.14,11.184,11.165,383.31105716]
[1672709675731,172.54708282,11.188,11.167,40.0]
[1672709676036,172.54708282,11.188,11.168,87.23]
[1672709676354,58.37678282,11.187,11.17,8.24]
[1672709676573,47.0603,11.188,11.171,134.5645]
[1672709676755,47.0603,11.188,11.172,196.3126]
[1672709677091,114.1703,11.188,11.173,67.2]
[1672709677282,114.1703,11.188,11.173,223.5126]
[1672709677493,114.1703,11.188,11.174,40.0]
[1672709677709,67.11,11.188,11.176,40.0]
[1672709677931,125.48678282,11.188,11.175,156.3126]
[1672709678125,180.70488124,11.188,11.175,156.3126]
[1672709678345,40.0,11.187,11.175,156.3126]
[1672709678557,67.13,11.186,11.176,108.0957]
[1672709679087,67.13,11.186,11.177,40.0]
[1672709679284,67.11,11.189,11.177,40.0]
[1672709679495,67.11,11.189,11.177,148.0957]
[1672709679707,8.28,11.19,11.177,148.0957]
[1672709679925,48.28,11.19,11.177,148.0957]
[1672709680244,8.28,11.19,11.177,148.0957]
[1672709681495,8.28,11.19,11.179,40.0]
[1672709683907,48.28,11.19,11.178,186.383]
[1672709684120,67.11,11.189,11.178,119.213]
[1672709684528,41.2,11.19,11.179,40.0]
[1672709684736,8.24,11.19,11.179,40.0]
[1672709685380,8.24,11.19,11.179,156.2457]
[1672709687056,48.24,11.19,11.179,156.2457]
[1672709687917,8.24,11.19,11.179,156.2457]
[1672709688418,48.24,11.19,11.179,156.2457]
[1672709689067,48.24,11.19,11.179,116.2457]
[1672709689472,8.24,11.19,11.179,116.2457]
[1672709689698,48.24,11.19,11.179,116.2457]
[1672709689898,8.24,11.19,11.179,116.2457]
[1672709690531,81.2,11.19,11.179,163.8381]
[1672709690861,148.3,11.19,11.179,163.8381]
[1672709691597,108.3,11.19,11.18,40.0]
[1672709691909,108.3,11.19,11.179,163.8381]
[1672709692113,40.0,11.189,11.179,163.8381]
[1672709693786,107.11,11.189,11.179,163.8381]
[1672709697604,165.48678282,11.189,11.179,163.8381]
[1672709700108,98.37678282,11.189,11.179,163.8381]
[1672709700315,58.37678282,11.189,11.179,163.8381]
[1672709700759,40.0,11.188,11.179,163.8381]
[1672709701365,40.0,11.189,11.179,163.8381]
[1672709708843,172.5973,11.19,11.179,163.8381]
[1672709709164,40.0,11.189,11.179,163.8381]
[1672709710212,98.37678282,11.189,11.179,163.8381]
[1672709710608,135.87367897,11.189,11.175,67.19]
[1672709710829,159.82696958,11.188,11.168,223.634]
[1672709711040,298.93576958,11.188,11.168,223.634]
[1672709711369,8.24,11.18,11.169,40.0]
[1672709711577,8.24,11.18,11.169,196.404]
[1672709711895,8.24,11.18,11.169,156.404]
[1672709712719,8.24,11.18,11.17,40.0]
[1672709713677,8.24,11.18,11.169,156.404]
[1672709714736,41.2,11.18,11.169,156.404]
[1672709714915,41.16,11.18,11.169,156.404]
[1672709715126,40.0,11.179,11.169,156.404]
[1672709715344,138.42322665,11.179,11.163,67.26]
[1672709715563,8.24,11.17,11.159,225.0767]
[1672709716094,8.24,11.17,11.159,157.7867]
[1672709716288,40.0,11.169,11.159,157.7867]
[1672709717372,40.0,11.169,11.159,155.2867]
[1672709718305,8.16,11.17,11.159,155.2867]
[1672709718822,8.16,11.17,11.16,67.28]
[1672709719029,8.16,11.17,11.161,40.0]
[1672709719254,117.0186,11.171,11.161,40.0]
[1672709720310,40.0,11.17,11.16,67.28]
[1672709720528,40.0,11.17,11.16,112.1844]
[1672709720926,48.24,11.17,11.16,112.1844]
[1672709721552,81.16,11.17,11.16,112.1844]
[1672709723571,48.24,11.17,11.16,112.1844]
[1672709727667,55.20955509,11.169,11.16,112.1844]
[1672709728012,40.0,11.167,11.16,112.1844]
[1672709729042,40.0,11.168,11.16,112.1844]
[1672709729440,55.20955509,11.169,11.16,112.1844]
[1672709729657,204.877,11.17,11.16,112.1844]
[1672709732907,204.377,11.17,11.16,112.1844]
[1672709733547,14.01206754,11.169,11.16,112.1844]
[1672709734621,14.01206754,11.169,11.161,107.28]
[1672709734924,14.01206754,11.169,11.161,173.7212695]
[1672709734925,0.00206754,11.169,11.161,173.7212695]
[1672709735662,12.84456754,11.169,11.161,107.28]
[1672709735882,12.84456754,11.169,11.163,40.0]
[1672709736092,12.84456754,11.169,11.165,40.0]
[1672709736282,12.84456754,11.169,11.166,67.25]
[1672709736619,40.0,11.178,11.166,67.25]
[1672709736815,40.0,11.178,11.166,138.1531]
[1672709737018,40.0,11.176,11.166,138.1531]
[1672709737440,95.20955509,11.176,11.166,138.1531]
[1672709740171,55.20955509,11.176,11.166,138.1531]
[1672709740376,55.20955509,11.176,11.167,40.0]
[1672709741549,12.89579415,11.175,11.166,138.1531]
[1672709741869,40.0,11.174,11.166,138.1531]
[1672709744166,12.89579415,11.175,11.166,138.1531]
[1672709747959,12.89579415,11.175,11.163,67.26]
[1672709748150,12.89579415,11.175,11.151,40.0]
[1672709748151,40.0,11.173,11.16,141.932]
[1672709748695,95.20955509,11.173,11.16,141.932]
[1672709748888,24.1594,11.172,11.161,107.28]
[1672709749091,12.8872602,11.174,11.161,107.28]
[1672709749302,12.8872602,11.174,11.162,141.932]
[1672709749748,12.8872602,11.174,11.163,40.0]
[1672709750599,37.0466602,11.174,11.162,141.932]
[1672709750773,40.0,11.173,11.162,141.932]
[1672709750984,64.1594,11.173,11.162,141.932]
[1672709751195,119.36895509,11.173,11.162,141.932]
[1672709751419,8.24,11.17,11.162,141.932]
[1672709752698,12.84456754,11.169,11.162,141.932]
[1672709759712,52.84456754,11.169,11.162,141.932]
[1672709759924,108.05412263,11.169,11.162,141.932]
[1672709762664,108.05412263,11.169,11.145,40.0]
[1672709762665,40.0,11.168,11.152,67.33]
[1672709762862,67.24,11.167,11.152,67.33]
[1672709763085,40.0,11.166,11.151,67.34]
[1672709763287,254.48675509,11.166,11.151,67.34]
[1672709763495,55.20955509,11.165,11.151,67.34]
[1672709763715,40.0,11.164,11.152,40.0]
[1672709763923,87.4409,11.164,11.152,40.0]
[1672709766540,23.4421,11.172,11.153,20.0]
[1672709766750,115.6808,11.17,11.154,107.32]
[1672709766967,115.6808,11.17,11.156,40.0]
[1672709767172,163.2445,11.17,11.16,8.23]
[1672709767493,163.2445,11.17,11.162,40.0]
[1672709767494,47.5637,11.17,11.162,40.0]
[1672709767703,0.00703215,11.164,11.163,67.26]
[1672709767911,8.25,11.18,11.164,40.0]
[1672709768121,8.25,11.18,11.165,67.25]
[1672709768332,8.25,11.18,11.166,40.0]
[1672709768639,8.25,11.18,11.167,67.24]
[1672709768854,8.25,11.18,11.168,40.0]
[1672709772107,7.75,11.18,11.168,40.0]
[1672709774101,40.67,11.18,11.167,183.8571]
[1672709774311,107.83,11.18,11.167,116.6171]
[1672709774540,40.0,11.179,11.167,116.6171]
[1672709774743,67.17,11.178,11.16,40.0]
[1672709775066,67.17,11.178,11.16,48.15]
[1672709775380,67.17,11.178,11.162,40.0]
[1672709775381,40.0,11.177,11.162,40.0]
[1672709775580,40.0,11.177,11.163,66.77]
[1672709775988,40.0,11.177,11.164,40.0]
[1672709776431,272.6813,11.179,11.164,40.0]
[1672709776622,165.5113,11.179,11.166,40.0]
[1672709778024,40.0,11.178,11.166,40.0]
[1672709778229,165.5113,11.179,11.168,40.0]
[1672709779069,46.1023,11.179,11.168,40.0]
[1672709779270,46.1023,11.179,11.169,67.23]
[1672709779477,46.1023,11.179,11.17,40.0]
[1672709779801,30.7282,11.18,11.17,40.0]
[1672709780012,30.7282,11.18,11.168,219.8224]
[1672709781886,30.7282,11.18,11.168,152.5924]
[1672709782437,40.0,11.179,11.168,152.5924]
[1672709785044,70.7282,11.18,11.168,152.5924]
[1672709785466,70.7282,11.18,11.168,112.5924]
[1672709785674,40.0,11.179,11.168,112.5924]
[1672709790107,67.17,11.178,11.162,67.27]
[1672709790423,40.0,11.177,11.16,40.0]
[1672709790633,67.19,11.176,11.16,40.0]
[1672709790857,40.0,11.175,11.16,40.0]
[1672709791278,45.34426958,11.188,11.17,8.15]
[1672709791491,258.71842043,11.19,11.17,41.15]
[1672709791492,8.26,11.19,11.17,41.15]
[1672709791710,8.26,11.19,11.171,223.4487]
[1672709791894,8.26,11.19,11.171,349.45050982]
[1672709791895,67.11,11.189,11.171,349.45050982]
[1672709792112,40.0,11.188,11.172,40.0]
[1672709792316,40.0,11.186,11.172,40.0]
[1672709794419,40.0,11.186,11.171,107.22]
[1672709794636,8.15,11.18,11.171,40.0]
[1672709795472,8.15,11.18,11.17,40.0]
[1672709796522,182.4982,11.183,11.17,40.0]
[1672709796743,115.3582,11.183,11.17,40.0]
[1672709798433,40.0,11.182,11.17,39.5]
[1672709801676,40.0,11.182,11.169,186.8136]
[1672709801907,107.15,11.182,11.169,186.8136]
[1672709804208,107.15,11.182,11.17,40.0]
[1672709804400,107.15,11.182,11.17,39.5]
[1672709808748,107.15,11.182,11.169,186.8136]
[1672709809901,107.15,11.182,11.17,40.0]
[1672709811165,107.15,11.182,11.166,40.0]
[1672709811166,40.95,11.18,11.162,67.27]
[1672709811365,40.0,11.178,11.16,40.0]
[1672709811584,67.18,11.177,11.16,40.0]
[1672709811787,40.0,11.175,11.16,40.0]
[1672709812004,40.0,11.173,11.16,40.0]
[1672709813793,48.12,11.18,11.162,40.0]
[1672709814109,148.723,11.179,11.164,40.0]
[1672709814447,148.723,11.179,11.166,40.0]
[1672709814632,40.0,11.177,11.166,40.0]
[1672709815459,40.0,11.177,11.166,157.3174]
[1672709817038,264.5455,11.179,11.166,157.3174]
[1672709817251,264.5455,11.179,11.168,40.0]
[1672709817464,264.5455,11.179,11.167,157.7612]
[1672709819597,63.36683167,11.178,11.16,67.28]
[1672709819791,107.18,11.177,11.159,161.7283]
[1672709820117,63.36683167,11.176,11.159,161.7283]
[1672709820312,40.0,11.174,11.159,161.7283]
[1672709820518,223.0202,11.173,11.159,161.7283]
[1672709820840,8.15,11.17,11.159,161.7283]
[1672709821271,40.0,11.169,11.159,161.7283]
[1672709823380,40.0,11.167,11.159,161.7283]
[1672709823688,40.0,11.167,11.156,24.6754]
[1672709824630,40.0,11.167,11.156,64.6754]
[1672709824829,270.3335,11.169,11.156,64.6754]
[1672709825039,270.3335,11.169,11.158,40.0]
[1672709825903,270.3335,11.169,11.158,158.3766]
[1672709826724,270.3335,11.169,11.158,118.3766]
[1672709829155,335.52194478,11.169,11.158,118.3766]
[1672709835270,335.52194478,11.169,11.158,165.5406]
[1672709837053,398.88877645,11.169,11.158,165.5406]
[1672709842326,43.29663418,11.168,11.151,67.34]
[1672709842640,8.18,11.16,11.15,164.7568]
[1672709843461,48.18,11.16,11.15,164.7568]
[1672709850629,176.73527645,11.16,11.15,164.7568]
[1672709853550,40.0,11.158,11.15,164.7568]
[1672709853761,40.0,11.158,11.15,118.0428]
[1672709853988,105.18844478,11.158,11.15,118.0428]
[1672709859469,65.18844478,11.158,11.15,118.0428]
[1672709860061,40.0,11.157,11.15,118.0428]
[1672709861034,40.0,11.157,11.148,46.8469]
[1672709863010,105.18844478,11.157,11.148,46.8469]
[1672709864408,65.18844478,11.157,11.148,46.8469]
[1672709864621,119.15653167,11.16,11.149,40.0]
[1672709864942,119.15653167,11.16,11.149,148.1594]
[1672709865259,40.0,11.159,11.149,148.1594]
[1672709865471,40.0,11.159,11.149,195.1431]
[1672709865872,105.18844478,11.159,11.149,155.1431]
[1672709870091,119.16653167,11.16,11.15,40.0]
[1672709873042,119.16653167,11.16,11.149,155.1431]
[1672709873256,119.16653167,11.16,11.15,40.0]
[1672709874093,119.16653167,11.16,11.149,155.1431]
[1672709874282,40.0,11.159,11.149,155.1431]
[1672709874492,107.29,11.159,11.149,155.1431]
[1672709874703,40.0,11.157,11.149,155.1431]
[1672709875142,105.18844478,11.157,11.149,155.1431]
[1672709876272,168.55527645,11.157,11.149,155.1431]
[1672709877982,128.55527645,11.157,11.149,155.1431]
[1672709878194,65.18844478,11.157,11.149,155.1431]
[1672709889543,40.0,11.156,11.149,155.1431]
[1672709889955,105.18844478,11.156,11.149,155.1431]
[1672709892578,168.55527645,11.156,11.149,155.1431]
[1672709893102,211.85191063,11.156,11.149,155.1431]
[1672709893313,279.16191063,11.156,11.149,155.1431]
[1672709900054,211.85191063,11.156,11.149,155.1431]
[1672709901020,171.85191063,11.156,11.149,155.1431]
[1672709904055,40.0,11.155,11.149,155.1431]
[1672709904491,65.18844478,11.154,11.149,155.1431]
[1672709905126,128.55527645,11.154,11.149,155.1431]
[1672709905327,128.55527645,11.154,11.146,23.6781]
[1672709905650,65.18844478,11.153,11.145,40.0]
[1672709907116,65.18844478,11.153,11.144,136.5278]
[1672709913094,40.0,11.152,11.144,136.5278]
[1672709914051,105.18844478,11.152,11.144,136.5278]
[1672709914268,65.18844478,11.152,11.144,136.5278]
[1672709927841,107.31,11.155,11.144,136.5278]
[1672709928052,40.0,11.153,11.144,136.5278]
[1672709928786,105.18844478,11.153,11.144,136.5278]
[1672709930665,105.18844478,11.153,11.14,90.7436]
[1672709930666,4.11,11.15,11.14,90.7436]
[1672709930869,44.11,11.15,11.14,46.0767]
[1672709931086,65.18844478,11.149,11.14,46.0767]
[1672709931285,132.53844478,11.149,11.14,46.0767]
[1672709931619,65.18844478,11.149,11.14,46.0767]
[1672709931844,40.0,11.148,11.14,46.0767]
[1672709932246,65.18844478,11.149,11.14,46.0767]
[1672709934445,132.53844478,11.149,11.14,46.0767]
[1672709935064,40.0,11.148,11.14,46.0767]
[1672709936141,40.0,11.148,11.14,22.7431]
[1672709940025,90.01314478,11.149,11.14,22.7431]
[1672709940974,24.8247,11.149,11.14,66.8331]
[1672709942319,24.8247,11.149,11.14,26.8331]
[1672709942749,24.8247,11.149,11.14,22.7431]
[1672709943176,40.0,11.148,11.14,22.7431]
[1672709946952,105.18014496,11.148,11.14,22.7431]
[1672709947167,40.0,11.146,11.14,22.7431]
[1672709947487,40.0,11.146,11.139,139.2397]
[1672709948942,105.18014496,11.146,11.139,139.2397]
[1672709949589,169.58459728,11.146,11.139,139.2397]
[1672709951372,212.88123146,11.146,11.139,139.2397]
[1672709963404,169.58459728,11.146,11.139,139.2397]
[1672709963711,129.58459728,11.146,11.139,139.2397]
[1672709963898,40.0,11.145,11.139,139.2397]
[1672709964320,129.58459728,11.144,11.139,139.2397]
[1672709964536,40.0,11.143,11.139,139.2397]
[1672709964844,104.40445232,11.143,11.138,23.7849]
[1672709965489,64.40445232,11.142,11.129,67.47]
[1672709965815,4.12,11.14,11.13,141.0866]
[1672709966220,40.0,11.139,11.13,141.0866]
[1672709966970,169.58459728,11.139,11.13,141.0866]
[1672709967159,212.88123146,11.139,11.13,141.0866]
[1672709979464,129.58459728,11.139,11.13,141.0866]
[1672709979675,129.58459728,11.139,11.131,40.0]
[1672709980523,129.58459728,11.139,11.13,141.0866]
[1672709981479,129.58459728,11.139,11.13,140.97482685]
[1672709983167,28.6553,11.14,11.131,40.0]
[1672709983375,28.6553,11.14,11.131,62.9932]
[1672709983564,24.5153,11.14,11.131,62.9932]
[1672709984835,4.11,11.15,11.132,67.46]
[1672709985045,4.11,11.15,11.133,40.0]
[1672709985264,4.11,11.15,11.135,40.0]
[1672709985470,4.11,11.15,11.136,115.003]
[1672709985688,4.11,11.15,11.137,40.0]
[1672709985887,44.11,11.15,11.139,40.0]
[1672709986209,4.11,11.15,11.139,40.0]
[1672709986613,4.11,11.15,11.139,205.9364]
[1672709987359,44.11,11.15,11.139,205.9364]
[1672709990323,68.9544,11.15,11.139,205.9364]
[1672709990533,28.9544,11.15,11.139,205.9364]
[1672709990925,28.9544,11.15,11.14,4.12]
[1672709991355,28.9544,11.15,11.14,29.099]
[1672709992839,68.9544,11.15,11.14,29.099]
[1672709994727,68.9544,11.15,11.14,24.979]
[1672709995056,40.0,11.149,11.14,24.979]
[1672709996926,68.9544,11.15,11.14,24.979]
[1672710001864,136.3044,11.15,11.14,24.979]
[1672710002817,40.0,11.149,11.14,24.979]
[1672710011661,96.3044,11.15,11.14,24.979]
[1672710012925,96.3044,11.15,11.14,64.979]
[1672710013457,28.9544,11.15,11.14,64.979]
[1672710013970,24.8444,11.15,11.141,40.0]
[1672710014580,67.31,11.157,11.141,193.22025616]
[1672710014803,92.0186,11.159,11.143,40.0]
[1672710015011,92.0186,11.159,11.144,114.4206]
[1672710015343,92.0186,11.159,11.145,40.0]
[1672710015555,92.0186,11.159,11.145,205.9217]
[1672710016070,40.0,11.158,11.146,156.9046]
[1672710016260,67.31,11.157,11.147,40.0]
[1672710016684,67.31,11.157,11.147,64.1039]
[1672710018081,67.31,11.157,11.147,24.1039]
[1672710018289,67.31,11.157,11.148,40.0]
[1672710018705,67.3,11.158,11.148,40.0]
[1672710019027,67.3,11.158,11.148,195.4953]
[1672710022681,67.3,11.158,11.148,155.4953]
[1672710022892,40.0,11.157,11.148,155.4953]
[1672710026180,40.0,11.155,11.148,155.4953]
[1672710027743,40.0,11.157,11.148,155.4953]
[1672710033411,23.6657,11.158,11.149,40.0]
[1672710033630,23.6657,11.158,11.15,4.12]
[1672710033816,12.38503647,11.156,11.15,71.47]
[1672710034156,12.38503647,11.156,11.151,40.0]
[1672710034558,23.6657,11.158,11.151,40.0]
[1672710035086,23.6657,11.158,11.15,28.1981]
[1672710035418,63.6657,11.158,11.15,24.0781]
[1672710036472,23.6657,11.158,11.15,24.0781]
[1672710037721,12.39327476,11.157,11.15,24.0781]
[1672710038467,12.39327476,11.157,11.142,67.4]
[1672710038468,67.31,11.156,11.142,67.4]
[1672710038684,40.0,11.155,11.14,114.1412]
[1672710038998,40.0,11.153,11.14,46.7312]
[1672710039212,40.0,11.151,11.14,46.7312]
[1672710039395,40.0,11.151,11.14,160.9216]
[1672710040664,40.0,11.151,11.14,140.9216]
[1672710041717,12.33557574,11.15,11.14,140.9216]
[1672710043532,16.44557574,11.15,11.14,136.8316]
[1672710050870,39.11997574,11.15,11.14,136.8316]
[1672710051082,40.0,11.149,11.14,136.8316]
[1672710051614,52.32732711,11.149,11.14,136.8316]
[1672710053808,12.32732711,11.149,11.14,136.8316]
[1672710056653,12.32732711,11.149,11.141,40.0]
[1672710057791,12.32732711,11.149,11.142,67.4]
[1672710057995,0.00732711,11.149,11.143,40.0]
[1672710058207,40.0,11.159,11.143,40.0]
[1672710058208,47.4787,11.159,11.145,40.0]
[1672710058438,47.4787,11.159,11.147,40.0]
[1672710058650,47.4787,11.159,11.148,67.36]
[1672710059381,47.4787,11.159,11.148,187.0825]
[1672710059568,47.4787,11.159,11.149,40.0]
[1672710061703,11.37423431,11.158,11.149,40.0]
[1672710062305,11.37423431,11.158,11.148,236.6217]
[1672710067061,11.37423431,11.158,11.148,169.2617]
[1672710067255,11.37423431,11.158,11.148,236.6217]
[1672710069157,51.37423431,11.158,11.148,236.6217]
[1672710069373,51.37423431,11.158,11.148,169.2617]
[1672710070840,74.22103431,11.158,11.148,169.2617]
[1672710071679,34.22103431,11.158,11.148,169.2617]
[1672710071876,34.22103431,11.158,11.149,40.0]
[1672710072820,34.22103431,11.158,11.148,169.2617]
[1672710073694,34.22103431,11.158,11.149,40.0]
[1672710075564,34.22103431,11.158,11.149,63.2675]
[1672710080004,34.22103431,11.158,11.149,23.2675]
[1672710083587,34.22103431,11.158,11.149,63.2675]
[1672710089785,34.22103431,11.158,11.15,40.0]
[1672710095878,34.22103431,11.158,11.15,107.35]
[1672710096189,34.22103431,11.158,11.15,40.0]
[1672710106077,34.22103431,11.158,11.151,67.34]
[1672710106287,67.24,11.168,11.152,40.0]
[1672710106503,165.6075,11.168,11.154,40.0]
[1672710106698,23.0066,11.167,11.155,228.6988]
[1672710106912,23.0066,11.167,11.156,40.0]
[1672710107361,23.0066,11.167,11.157,11.23660567]
[1672710107536,23.0066,11.167,11.157,78.54660567]
[1672710107752,23.0066,11.167,11.158,40.0]
[1672710108080,10.48571962,11.166,11.158,40.0]
[1672710108702,23.0066,11.167,11.158,40.0]
[1672710117864,23.0066,11.167,11.16,44.12]
[1672710118049,22.5066,11.167,11.16,44.12]
[1672710120066,22.5066,11.167,11.16,40.0]
[1672710124898,22.5066,11.167,11.158,107.3]
[1672710125090,22.5066,11.167,11.157,208.5937]
[1672710125511,22.5066,11.167,11.158,40.0]
[1672710127313,62.5066,11.167,11.153,67.54696422]
[1672710127523,137.8127,11.166,11.155,40.0]
[1672710127716,137.8127,11.166,11.156,67.31]
[1672710127917,137.8127,11.166,11.157,40.0]
[1672710128132,137.8127,11.166,11.158,67.3]
[1672710128355,137.8127,11.166,11.159,40.0]
[1672710132651,114.7822,11.166,11.159,40.0]
[1672710149070,114.7822,11.166,11.157,40.0]
[1672710154524,114.7822,11.166,11.16,4.12]
[1672710154727,137.0143,11.174,11.161,67.28]